bitfinex/quotes_ETHUSD_20250505
["timestamp","ask_amount","ask_price","bid_price","bid_amount"]
[1746432575531,6.25602198,1829.8,1829.2,18.38473126]
[1746432575532,5.46589803,1829.6,1829.4,0.55]
[1746432575728,5.46552073,1829.7,1829.3,0.60465943]
[1746432575931,5.46556666,1829.7,1829.3,0.60465943]
[1746432576557,5.46556666,1829.7,1829.3,6.07121662]
[1746432576758,5.46556666,1829.7,1829.3,7.91514274]
[1746432577433,5.46556666,1829.7,1829.3,7.86048331]
[1746432577634,5.46556666,1829.7,1829.4,4.582]
[1746432578572,5.46572549,1829.6,1829.4,4.582]
[1746432581068,5.4659743,1829.5,1829.4,5.132]
[1746432581273,9.2731743,1829.5,1829.4,5.132]
[1746432582073,9.2731743,1829.5,1829.4,4.582]
[1746432583577,8.4659743,1829.5,1829.4,4.582]
[1746432586777,3.0,1829.5,1829.4,6.74610416]
[1746432586955,5.4654883,1829.7,1829.5,0.55]
[1746432590310,5.8760424,1829.8,1829.5,0.55]
[1746432590713,11.34141004,1829.8,1829.5,0.55]
[1746432590868,5.8760424,1829.8,1829.5,0.55]
[1746432591370,5.46549668,1829.7,1829.5,0.55]
[1746432595415,5.8760424,1829.8,1829.5,0.55]
[1746432595718,11.34137365,1829.8,1829.5,0.55]
[1746432596503,5.4653878,1829.7,1829.5,0.55]
[1746432597275,5.46567555,1829.6,1829.5,0.55]
[1746432598006,5.46556549,1829.7,1829.5,0.55]
[1746432600512,5.46523557,1829.8,1829.5,1.8832]
[1746432600816,3.0,1829.9,1829.5,1.8832]
[1746432600817,3.0,1829.9,1829.5,7.34896449]
[1746432601110,3.0,1829.9,1829.6,8.37239585]
[1746432603831,3.0,1829.9,1829.6,14.52239585]
[1746432607012,5.46464466,1830.0,1829.6,14.52239585]
[1746432607174,5.46464466,1830.0,1829.8,0.55]
[1746432607379,5.46464466,1830.0,1829.8,5.131]
[1746432607612,5.875264,1830.1,1829.8,5.131]
[1746432607912,11.33970841,1830.1,1829.8,5.944]
[1746432608138,5.46449925,1830.0,1829.8,5.944]
[1746432608429,5.46449925,1830.0,1829.8,6.53901981]
[1746432611337,9.23014783,1830.2,1829.8,6.53901981]
[1746432611338,8.46412117,1830.2,1829.8,12.00405034]
[1746432611909,13.92826517,1830.2,1829.8,12.00405034]
[1746432612116,5.46418355,1830.1,1829.8,6.53901981]
[1746432612352,5.46418355,1830.1,1829.8,6.59366378]
[1746432612550,5.46418355,1830.1,1829.9,0.65936638]
[1746432613849,8.86585332,1830.2,1829.9,0.65936638]
[1746432614027,8.86585332,1830.2,1830.0,0.55]
[1746432615164,5.46418228,1830.1,1830.0,0.55]
[1746432617058,8.86579565,1830.2,1830.0,0.55]
[1746432619471,14.32992382,1830.2,1830.0,0.55]
[1746432619675,5.46418228,1830.1,1830.0,0.55]
[1746432620467,5.46451836,1830.0,1829.9,0.55]
[1746432624980,5.46435972,1830.1,1829.9,0.55]
[1746432626480,5.46448087,1830.0,1829.9,0.55]
[1746432631394,5.46448087,1830.0,1829.9,0.68932866]
[1746432632895,8.46448087,1830.0,1829.9,0.68932866]
[1746432633194,8.77225733,1830.0,1829.9,0.68932866]
[1746432636913,8.77225733,1830.0,1829.9,0.13932866]
[1746432637104,10.19591904,1830.0,1829.9,0.13932866]
[1746432637599,11.02531904,1830.0,1829.9,0.13932866]
[1746432637979,12.6394232,1830.0,1829.9,0.13932866]
[1746432639007,12.63954745,1830.0,1829.9,0.13932866]
[1746432643184,8.46576042,1829.6,1829.5,4.579]
[1746432643909,8.77353688,1829.6,1829.5,4.579]
[1746432645344,3.30777646,1829.6,1829.5,5.129]
[1746432645784,0.30777646,1829.6,1829.5,5.129]
[1746432646185,5.46518901,1829.8,1829.5,5.129]
[1746432646824,0.3073298,1829.7,1829.5,5.129]
[1746432647316,5.46539126,1829.7,1829.5,5.129]
[1746432648833,0.30739274,1829.6,1829.5,5.129]
[1746432650464,5.77306829,1829.6,1829.5,5.129]
[1746432650762,0.30739274,1829.6,1829.5,5.129]
[1746432650921,0.30739274,1829.6,1829.5,5.26139599]
[1746432651351,5.77306829,1829.6,1829.5,5.26139599]
[1746432651661,9.89693235,1829.6,1829.5,4.71139599]
[1746432652073,11.51116076,1829.6,1829.5,4.71139599]
[1746432652277,12.31726076,1829.6,1829.5,4.71139599]
[1746432653566,12.31726076,1829.6,1829.5,0.13239599]
[1746432653932,5.46657191,1829.3,1829.2,4.577]
[1746432654476,5.77396465,1829.3,1829.2,4.577]
[1746432654662,6.17554928,1829.3,1829.2,4.577]
[1746432655940,6.17554928,1829.3,1829.2,4.71135229]
[1746432656274,9.17554928,1829.3,1829.2,4.71135229]
[1746432661273,3.30739274,1829.3,1829.2,4.71135229]
[1746432662358,3.30739274,1829.3,1829.2,5.50385229]
[1746432663085,3.0,1829.3,1829.2,5.50385229]
[1746432663288,5.88155825,1829.5,1829.3,0.55]
[1746432663594,3.0,1829.5,1829.3,0.55]
[1746432663758,8.4659743,1829.5,1829.4,0.13599296]
[1746432664253,8.77310743,1829.5,1829.4,0.13599296]
[1746432664459,3.30713313,1829.5,1829.4,0.13599296]
[1746432665315,8.77310743,1829.5,1829.4,0.13599296]
[1746432666608,3.30713313,1829.5,1829.4,0.13599296]
[1746432666795,8.77310743,1829.5,1829.4,0.13599296]
[1746432671119,9.54320743,1829.5,1829.4,0.13599296]
[1746432671417,11.00753191,1829.5,1829.4,0.13599296]
[1746432672205,3.30713313,1829.5,1829.4,0.13599296]
[1746432672412,8.77310743,1829.5,1829.3,0.55]
[1746432672587,8.77310743,1829.5,1829.4,0.13433125]
[1746432686764,0.30713313,1829.5,1829.4,1.44783125]
[1746432686929,5.46533064,1829.8,1829.4,7.45515602]
[1746432687261,3.0,1829.7,1829.4,7.45515602]
[1746432687462,3.0,1829.7,1829.4,3.19189853]
[1746432687667,0.3077049,1829.6,1829.4,3.19189853]
[1746432688160,0.3077049,1829.6,1829.5,0.7666]
[1746432688373,3.0,1829.7,1829.6,0.55]
[1746432688674,3.0,1829.7,1829.6,0.68485014]
[1746432689033,5.87061231,1829.8,1829.6,0.68485014]
[1746432689034,5.46492836,1829.9,1829.6,0.68485014]
[1746432689234,0.30769917,1829.7,1829.6,3.28363859]
[1746432689541,0.30769917,1829.7,1829.6,3.3382896]
[1746432689762,5.46492836,1829.9,1829.6,3.28363859]
[1746432689961,5.46492836,1829.9,1829.6,1.97690182]
[1746432694598,5.46511532,1829.8,1829.6,1.97690182]
[1746432695406,5.46511532,1829.8,1829.6,1.43585014]
[1746432695572,5.46537683,1829.7,1829.6,0.13485014]
[1746432696598,8.77262663,1829.7,1829.6,0.13485014]
[1746432696900,10.27963083,1829.7,1829.6,0.13485014]
[1746432701323,10.27963083,1829.7,1829.5,0.55]
[1746432701529,8.77262663,1829.7,1829.6,0.13149457]
[1746432708935,3.3072498,1829.7,1829.6,1.46859457]
[1746432711275,8.77262663,1829.7,1829.6,1.46859457]
[1746432721396,0.3072498,1829.7,1829.6,1.46859457]
[1746432721593,0.3072498,1829.7,1829.6,6.93427012]
[1746432721916,0.3072498,1829.7,1829.6,9.23201644]
[1746432722195,0.3072498,1829.7,1829.6,3.76634089]
[1746432722403,8.46478873,1829.9,1829.7,0.55]
[1746432722763,8.46478873,1829.9,1829.8,0.13219967]
[1746432723258,8.7724254,1829.9,1829.8,0.13219967]
[1746432727014,8.7724254,1829.9,1829.8,0.55]
[1746432727312,5.46511544,1829.8,1829.7,0.55]
[1746432727515,5.77275211,1829.8,1829.7,0.55]
[1746432730909,5.77275211,1829.8,1829.7,0.68082206]
[1746432732421,5.77275211,1829.8,1829.7,0.13082206]
[1746432732718,7.43579904,1829.8,1829.7,0.13082206]
[1746432733020,5.46567555,1829.6,1829.5,4.571]
[1746432733209,6.25167555,1829.6,1829.5,4.571]
[1746432733716,6.55931222,1829.6,1829.5,4.571]
[1746432738353,9.55931222,1829.6,1829.5,4.571]
[1746432738509,5.46657191,1829.3,1829.2,4.571]
[1746432738835,10.38843699,1829.3,1829.2,4.571]
[1746432739346,8.77420858,1829.3,1829.2,4.571]
[1746432745755,8.77420858,1829.3,1829.2,4.70555822]
[1746432748765,10.38843699,1829.3,1829.2,4.70555822]
[1746432748948,12.09474694,1829.3,1829.2,4.70555822]
[1746432750354,10.38843699,1829.3,1829.2,4.70555822]
[1746432750555,8.77420858,1829.3,1829.2,4.70555822]
[1746432761789,3.30763667,1829.3,1829.2,4.70555822]
[1746432762278,8.77420858,1829.3,1829.2,0.13455822]
[1746432762718,5.46687076,1829.2,1829.1,1.3205]
[1746432763718,5.77450743,1829.2,1829.1,1.3205]
[1746432764209,0.30763667,1829.2,1829.1,1.3205]
[1746432764866,5.77450743,1829.2,1829.1,0.55]
[1746432765608,0.30763667,1829.2,1829.1,0.55]
[1746432770024,5.77450743,1829.2,1829.1,0.55]
[1746432772022,5.77450743,1829.2,1829.0,5.3796]
[1746432772186,5.77450743,1829.2,1829.0,4.569]
[1746432772384,0.30763667,1829.1,1829.0,5.119]
[1746432772622,5.77480631,1829.1,1829.0,5.119]
[1746432774022,0.30763667,1829.1,1829.0,5.119]
[1746432775989,0.30763667,1829.1,1829.0,5.25683086]
[1746432780433,0.30763667,1829.1,1829.0,4.70683086]
[1746432781092,5.77480631,1829.1,1829.0,4.70683086]
[1746432786138,0.30763667,1829.1,1829.0,4.70683086]
[1746432786431,0.30763667,1829.1,1829.0,0.13783086]
[1746432790571,0.30763667,1829.1,1829.0,1.15811395]
[1746432790872,0.30763667,1829.1,1829.0,1.94411395]
[1746432792067,5.46640965,1829.4,1829.2,0.817]
[1746432792068,3.0,1829.4,1829.2,0.817]
[1746432792447,5.46634723,1829.4,1829.3,0.13792552]
[1746432792855,8.77428781,1829.4,1829.3,0.13792552]
[1746432793229,14.24082718,1829.4,1829.1,0.55]
[1746432793565,8.46634723,1829.4,1829.3,0.13792552]
[1746432793764,8.46634723,1829.4,1829.2,0.13797685]
[1746432793964,8.46634723,1829.4,1829.3,0.13792552]
[1746432794140,8.77425265,1829.4,1829.3,0.13792552]
[1746432794330,8.77425265,1829.4,1829.1,0.55]
[1746432794531,8.77425265,1829.4,1829.3,0.13792552]
[1746432794731,8.77425265,1829.4,1829.2,0.13797685]
[1746432794929,8.46634723,1829.4,1829.3,0.13792552]
[1746432795679,8.46634723,1829.4,1829.1,4.23398864]
[1746432795865,8.77420255,1829.4,1829.3,0.13792552]
[1746432796068,8.77420255,1829.4,1829.1,4.23398864]
[1746432796369,5.77443211,1829.3,1829.1,4.23398864]
[1746432796890,5.77443211,1829.3,1829.1,8.79898864]
[1746432797034,0.30785532,1829.2,1829.1,8.79898864]
[1746432797331,0.30785532,1829.2,1829.1,9.81469267]
[1746432797669,0.30785532,1829.2,1829.1,15.96469267]
[1746432797846,0.30785532,1829.2,1829.1,12.28070403]
[1746432799373,0.30785532,1829.2,1829.1,11.265]
[1746432800019,0.30785532,1829.2,1829.0,5.04204032]
[1746432800020,4.08945532,1829.2,1829.0,4.22504032]
[1746432800173,6.25026455,1828.6,1828.5,3.91158444]
[1746432800368,12.34482072,1828.6,1828.5,3.91158444]
[1746432800583,3.30785532,1828.6,1828.5,3.91158444]
[1746432800897,8.77651987,1828.6,1828.5,3.91158444]
[1746432801898,9.28899073,1828.6,1828.5,3.91158444]
[1746432804408,9.28899073,1828.6,1828.3,4.565]
[1746432804781,0.51247086,1828.5,1828.3,4.565]
[1746432805108,8.46866455,1828.6,1828.3,4.565]
[1746432805702,5.46898483,1828.5,1828.3,4.565]
[1746432806001,5.46898483,1828.5,1828.4,0.11489514]
[1746432806311,5.46898483,1828.5,1828.3,4.565]
[1746432806476,5.46898483,1828.5,1828.4,0.11489514]
[1746432806673,5.46898483,1828.5,1828.3,4.565]
[1746432806875,5.46898483,1828.5,1828.4,0.11489514]
[1746432807407,5.98049023,1828.5,1828.3,4.565]
[1746432807571,5.98049023,1828.5,1828.4,0.11489514]
[1746432807905,5.46898483,1828.5,1828.3,4.565]
[1746432808105,5.46898483,1828.5,1828.4,0.11489514]
[1746432808282,5.46898483,1828.5,1828.3,4.565]
[1746432808483,5.46898483,1828.5,1828.4,0.11489514]
[1746432808671,5.46898483,1828.5,1828.3,4.565]
[1746432808872,5.46898483,1828.5,1828.4,0.11489514]
[1746432809074,5.46926274,1828.4,1828.3,5.115]
[1746432809772,5.46910888,1828.5,1828.3,5.115]
[1746432810802,10.93831928,1828.5,1828.3,5.115]
[1746432811009,5.46910888,1828.5,1828.3,5.115]
[1746432811810,10.93836386,1828.5,1828.3,5.115]
[1746432812307,5.46910888,1828.5,1828.3,5.115]
[1746432812507,10.93833486,1828.5,1828.3,5.115]
[1746432812678,10.9383321,1828.5,1828.3,5.115]
[1746432812874,5.46910888,1828.5,1828.3,5.115]
[1746432813077,5.46926274,1828.4,1828.3,5.115]
[1746432815613,3.0,1828.5,1828.4,0.55]
[1746432817021,8.46896363,1828.5,1828.4,0.55]
[1746432820503,0.7535,1828.8,1828.4,0.55]
[1746432820504,5.46813592,1828.8,1828.4,1.8122]
[1746432820819,5.46793704,1828.9,1828.6,0.55]
[1746432821031,5.46814612,1828.8,1828.7,0.12468107]
[1746432821330,5.46814612,1828.8,1828.6,1.3367]
[1746432821501,5.46814612,1828.8,1828.7,0.12468107]
[1746432821824,5.46814612,1828.8,1828.6,1.3367]
[1746432822023,5.46814612,1828.8,1828.7,0.12468107]
[1746432822232,5.46814612,1828.8,1828.6,1.3367]
[1746432822536,3.7723,1829.0,1828.6,1.3367]
[1746432822537,3.0,1829.0,1828.8,0.55]
[1746432822706,5.46748062,1829.0,1828.8,0.55]
[1746432823027,5.46748062,1829.0,1828.9,0.12457836]
[1746432823327,5.97850882,1829.0,1828.8,0.55]
[1746432823524,0.5110282,1829.0,1828.9,0.12109837]
[1746432823689,0.5110282,1829.0,1828.8,0.55]
[1746432823886,7.08216809,1829.1,1828.9,0.12109837]
[1746432824192,5.46752714,1829.0,1828.8,0.55]
[1746432824495,5.46733526,1829.1,1828.8,0.55]
[1746432825103,0.51133799,1829.0,1828.8,0.55]
[1746432825302,5.46733526,1829.1,1828.8,0.55]
[1746432825632,5.46733526,1829.1,1828.8,1.3138]
[1746432825796,5.46733526,1829.1,1828.8,2.44831603]
[1746432825998,0.51149736,1829.0,1828.8,2.44831603]
[1746432826627,3.0,1829.2,1829.0,0.55]
[1746432827431,8.46698335,1829.2,1829.0,0.55]
[1746432827620,3.0,1829.2,1829.0,0.55]
[1746432830333,3.0,1829.2,1829.0,1.46444337]
[1746432830530,8.46690559,1829.2,1829.0,0.55]
[1746432831091,0.51166183,1829.1,1829.0,0.55]
[1746432832997,8.46690559,1829.2,1829.0,0.55]
[1746432835828,8.46690559,1829.2,1829.1,0.67043654]
[1746432836496,8.77369824,1829.2,1829.1,0.67043654]
[1746432836698,9.28501933,1829.2,1829.1,0.67043654]
[1746432839603,8.97822668,1829.2,1829.1,0.67043654]
[1746432840337,3.51132109,1829.2,1829.1,0.67043654]
[1746432841002,3.51132109,1829.2,1829.1,1.49403654]
[1746432841204,0.51132109,1829.2,1829.1,11.52220618]
[1746432841417,5.4661163,1829.5,1829.1,12.67989369]
[1746432842636,5.46582424,1829.6,1829.2,6.01687029]
[1746432842847,5.46582424,1829.6,1829.4,0.55]
[1746432843001,8.46582424,1829.6,1829.5,0.11749781]
[1746432844225,3.0,1829.7,1829.6,0.55]
[1746432844430,3.30666643,1829.7,1829.6,0.66347203]
[1746432845341,3.0,1829.7,1829.6,0.66347203]
[1746432845721,2.02930597,1830.0,1829.6,1.94501923]
[1746432845922,3.0,1829.8,1829.6,1.42257203]
[1746432846120,5.46499823,1829.9,1829.6,1.4772239]
[1746432846323,5.46499823,1829.9,1829.6,1.42257203]
[1746432846324,3.0,1829.8,1829.6,1.42257203]
[1746432846727,8.46467255,1830.0,1829.6,1.42257203]
[1746432846925,0.30659361,1829.9,1829.6,1.42257203]
[1746432847140,5.46508004,1829.8,1829.6,1.42257203]
[1746432847348,3.0,1829.8,1829.6,2.63592923]
[1746432847556,8.46510188,1829.8,1829.6,2.63592923]
[1746432848649,5.46537683,1829.7,1829.6,1.87682923]
[1746432848817,5.46537683,1829.7,1829.6,0.66347203]
[1746432851052,5.77215092,1829.7,1829.6,0.66347203]
[1746432851848,5.77215092,1829.7,1829.6,0.55]
[1746432853952,5.46567555,1829.6,1829.5,10.711]
[1746432854158,9.22127555,1829.6,1829.5,4.561]
[1746432854353,10.88210088,1829.6,1829.5,4.561]
[1746432854653,11.29197106,1829.6,1829.5,4.561]
[1746432854853,11.59874515,1829.6,1829.5,4.561]
[1746432856454,5.46620062,1829.5,1829.3,0.55]
[1746432857761,7.0810275,1829.5,1829.3,0.55]
[1746432857929,5.46627309,1829.4,1829.3,0.55]
[1746432860772,5.77342005,1829.4,1829.3,0.55]
[1746432861171,5.46657191,1829.3,1829.2,10.71]
[1746432861471,7.89259879,1829.3,1829.2,11.26]
[1746432862067,8.19974575,1829.3,1829.2,11.26]
[1746432862874,7.38854575,1829.3,1829.2,11.26]
[1746432863349,5.77371887,1829.3,1829.2,11.26]
[1746432865180,5.46692824,1829.2,1828.9,0.8282]
[1746432865344,5.46776751,1828.9,1828.8,10.71]
[1746432865673,5.46761908,1829.0,1828.9,0.55]
[1746432865880,5.46761908,1829.0,1828.9,0.70574036]
[1746432866286,5.7749949,1829.0,1828.9,0.6568668]
[1746432867858,5.7749949,1829.0,1828.9,0.1068668]
[1746432868039,5.46776751,1828.9,1828.8,11.26]
[1746432868240,7.08259439,1828.9,1828.8,11.36766286]
[1746432868477,7.08259439,1828.9,1828.8,4.66766286]
[1746432868674,7.38997021,1828.9,1828.8,4.66766286]
[1746432869694,7.08259439,1828.9,1828.8,4.66766286]
[1746432876994,1.61482688,1828.9,1828.8,4.66766286]
[1746432879971,6.26575338,1829.0,1828.8,4.66766286]
[1746432883500,5.46765338,1829.0,1828.8,4.66766286]
[1746432883665,7.49074524,1829.1,1828.8,4.66766286]
[1746432883997,5.87591836,1829.1,1828.8,4.66766286]
[1746432884581,3.0,1829.1,1828.9,0.55]
[1746432884967,3.0,1829.1,1829.0,0.10873933]
[1746432885202,8.77438695,1829.1,1829.0,0.10873933]
[1746432898009,3.30721731,1829.1,1829.0,0.10873933]
[1746432898339,8.77438695,1829.1,1829.0,0.10873933]
[1746432899045,3.30721731,1829.1,1829.0,0.93613933]
[1746432899249,3.30721731,1829.1,1829.0,1.48613933]
[1746432899250,0.30721731,1829.1,1829.0,1.48613933]
[1746432899542,0.30721731,1829.1,1829.0,2.85698071]
[1746432899910,5.46670962,1829.3,1829.1,0.55]
[1746432900213,5.46650786,1829.4,1829.2,0.10845046]
[1746432900408,5.46657191,1829.3,1829.2,0.10845046]
[1746432900607,5.77448699,1829.3,1829.1,0.55]
[1746432900842,5.77448699,1829.3,1829.2,0.10845046]
[1746432901210,5.77448699,1829.3,1829.1,0.55]
[1746432901410,5.46657191,1829.3,1829.2,0.10845046]
[1746432901758,5.46657191,1829.3,1829.1,0.55]
[1746432901950,5.46687076,1829.2,1829.1,0.55]
[1746432902266,7.08159455,1829.3,1829.1,0.55]
[1746432902562,12.54843678,1829.3,1829.1,0.55]
[1746432902855,7.08159455,1829.3,1829.1,0.55]
[1746432903354,0.30778335,1829.2,1829.1,0.55]
[1746432904653,3.0,1829.1,1828.9,6.15]
[1746432904958,5.46776751,1828.9,1828.8,4.56]
[1746432905134,5.46814482,1828.8,1828.6,0.8256]
[1746432905454,5.46794364,1828.9,1828.6,0.8256]
[1746432905616,5.77585208,1828.8,1828.6,0.8256]
[1746432905821,5.77585208,1828.8,1828.7,0.55]
[1746432906152,5.77584984,1828.8,1828.7,0.55]
[1746432910459,6.2887762,1828.8,1828.7,0.55]
[1746432912166,5.77584984,1828.8,1828.7,0.55]
[1746432913265,6.28864717,1828.8,1828.7,0.55]
[1746432913558,0.82058068,1828.8,1828.7,0.55]
[1746432914043,0.82058068,1828.8,1828.7,1.23442638]
[1746432914440,0.82058068,1828.8,1828.7,0.55]
[1746432914942,0.51279733,1828.8,1828.7,0.55]
[1746432915348,3.0,1828.9,1828.7,0.55]
[1746432916356,0.30763477,1828.8,1828.7,0.55]
[1746432917065,3.0,1828.9,1828.7,0.55]
[1746432918162,0.30763435,1828.8,1828.7,0.55]
[1746432922066,3.0,1828.9,1828.7,0.55]
[1746432924087,5.46806649,1828.8,1828.7,0.55]
[1746432924289,6.59658404,1828.8,1828.7,0.55]
[1746432925695,5.46841562,1828.7,1828.5,4.56]
[1746432925902,5.46841562,1828.7,1828.6,0.55]
[1746432926587,5.77603317,1828.7,1828.6,0.55]
[1746432926881,0.82031195,1828.7,1828.6,0.55]
[1746432927196,0.5126944,1828.7,1828.6,0.55]
[1746432929771,0.820333,1828.7,1828.6,0.55]
[1746432929960,6.2886985,1828.7,1828.6,0.55]
[1746432930810,6.2886985,1828.7,1828.5,4.56]
[1746432931092,5.98135895,1828.6,1828.5,4.56]
[1746432931250,6.28899755,1828.6,1828.5,4.56]
[1746432935719,0.820333,1828.6,1828.5,4.56]
[1746432936378,0.820333,1828.6,1828.5,5.11]
[1746432936578,0.820333,1828.6,1828.5,5.9057]
[1746432938832,0.5126944,1828.6,1828.5,5.9057]
[1746432939410,3.0,1828.7,1828.5,5.9057]
[1746432940232,5.46793519,1828.9,1828.6,0.55]
[1746432940437,3.0,1828.8,1828.6,0.55]
[1746432940635,3.0,1828.9,1828.8,0.55]
[1746432941214,3.3077645,1828.9,1828.8,0.55]
[1746432942029,3.30770891,1828.9,1828.8,0.55]
[1746432942706,3.82054037,1828.9,1828.8,0.55]
[1746432945032,9.28830788,1828.9,1828.8,0.55]
[1746432945236,9.28830788,1828.9,1828.6,0.55]
[1746432945548,0.51283146,1828.8,1828.6,0.55]
[1746432947848,0.307689,1828.8,1828.6,7.27067437]
[1746432948049,0.307689,1828.8,1828.6,1.80201502]
[1746432948647,0.307689,1828.8,1828.6,7.27067728]
[1746432948842,3.0,1828.9,1828.6,7.27067728]
[1746432949142,2.41042688,1829.3,1828.8,1.3162]
[1746432949315,5.46753019,1829.0,1828.7,1.3762]
[1746432949514,0.51274639,1828.9,1828.7,1.3762]
[1746432950027,5.46753019,1829.0,1828.7,1.3762]
[1746432950448,0.30764951,1828.9,1828.7,1.3762]
[1746432950751,0.51274329,1828.8,1828.7,1.3762]
[1746432951727,6.24973019,1829.0,1828.7,1.3762]
[1746432952035,7.7214213,1829.0,1828.7,0.55]
[1746432952245,13.18918145,1829.0,1828.7,0.55]
[1746432952426,7.7214213,1829.0,1828.7,0.55]
[1746432952949,0.30763776,1828.9,1828.7,0.55]
[1746432953649,5.77546432,1828.9,1828.7,0.55]
[1746432954063,0.30763776,1828.8,1828.7,0.55]
[1746432954415,0.30763776,1828.9,1828.7,0.55]
[1746432955256,0.30763848,1828.8,1828.7,0.55]
[1746432956348,0.30763848,1828.8,1828.7,1.23903719]
[1746432957157,0.30763848,1828.8,1828.7,5.79703719]
[1746432957531,10.9352781,1829.0,1828.7,5.108]
[1746432957532,5.46777842,1828.9,1828.7,5.108]
[1746432959060,0.30761473,1828.8,1828.7,11.258]
[1746432960773,16.70771743,1829.1,1828.7,16.7263655]
[1746432960971,5.46748031,1829.0,1828.7,16.7263655]
[1746432961174,5.46748031,1829.0,1828.7,11.258]
[1746432961674,0.30759718,1828.9,1828.7,11.258]
[1746432962334,0.30759718,1828.9,1828.7,18.48072375]
[1746432962538,8.87299375,1829.1,1828.8,0.8226]
[1746432963365,0.30765448,1829.0,1828.8,0.8226]
[1746432963771,0.30765448,1828.9,1828.8,0.8226]
[1746432964074,0.30765448,1828.9,1828.8,1.3726]
[1746432964675,0.30765448,1828.9,1828.8,6.84066649]
[1746432965411,8.46701672,1829.2,1828.9,0.55]
[1746432965699,10.89848065,1829.3,1828.9,0.55]
[1746432965864,10.89848065,1829.3,1829.1,0.55]
[1746432965865,1.61482688,1829.3,1829.1,0.55]
[1746432966052,4.61482688,1829.3,1829.1,0.55]
[1746432966253,0.30761598,1829.2,1829.1,0.55]
[1746432966497,0.30761598,1829.2,1829.1,7.3104449]
[1746432966706,0.30761598,1829.2,1829.1,7.16477526]
[1746432967177,3.0,1829.4,1829.1,12.63191326]
[1746432967779,0.3075629,1829.3,1829.1,12.63191326]
[1746432968397,3.0,1829.4,1829.1,12.63191326]
[1746432968894,5.46623989,1829.5,1829.1,12.63191326]
[1746432969263,5.46623989,1829.5,1829.3,0.55]
[1746432969462,0.30742391,1829.4,1829.3,0.55]
[1746432971388,0.30742391,1829.4,1829.3,6.7]
[1746432971695,8.46578437,1829.6,1829.3,6.7]
[1746432972397,5.46598055,1829.5,1829.3,6.7]
[1746432972584,7.08080743,1829.5,1829.3,7.49631913]
[1746432975697,5.46627309,1829.4,1829.3,7.49631913]
[1746432975898,5.46627309,1829.4,1829.3,6.7]
[1746432976623,7.08098234,1829.5,1829.3,0.55]
[1746432981926,8.46586112,1829.6,1829.4,0.55]
[1746432982423,5.4659743,1829.5,1829.4,0.55]
[1746432982617,5.77295662,1829.5,1829.4,0.55]
[1746432982789,5.77295662,1829.5,1829.2,1.3433]
[1746432983000,5.77295662,1829.5,1829.2,3.09492824]
[1746432983432,5.4659743,1829.5,1829.2,3.09492824]
[1746432984710,10.93222139,1829.5,1829.2,3.09492824]
[1746432985024,10.93219646,1829.5,1829.2,1.3433]
[1746432985331,5.46630514,1829.4,1829.2,0.55]
[1746432985740,7.08100247,1829.5,1829.2,0.55]
[1746432987047,0.30713449,1829.4,1829.2,0.55]
[1746432987838,7.08100247,1829.5,1829.2,0.55]
[1746432988069,5.46657191,1829.3,1829.2,0.55]
[1746432988631,6.21915436,1829.4,1829.2,0.55]
[1746432988876,0.30728241,1829.3,1829.2,0.55]
[1746432989880,7.3886812,1829.3,1829.1,10.706]
[1746432990171,5.46687076,1829.2,1829.1,10.706]
[1746432990398,5.46687076,1829.2,1829.1,11.256]
[1746432990548,5.77415317,1829.2,1829.1,11.256]
[1746432992194,5.77436412,1829.2,1829.1,11.256]
[1746432994274,5.77436412,1829.2,1829.1,5.106]
[1746432995500,0.30749336,1829.2,1829.1,5.106]
[1746432995713,0.30749336,1829.2,1829.1,6.3754]
[1746432996293,5.46644964,1829.4,1829.1,6.43006436]
[1746432996672,5.46644964,1829.4,1829.2,0.55]
[1746432996993,0.30775202,1829.3,1829.2,0.55]
[1746433000120,0.30775202,1829.3,1829.2,7.57916206]
[1746433000269,0.30775202,1829.3,1829.2,9.39043646]
[1746433000467,8.46579755,1829.6,1829.2,9.39043646]
[1746433001002,8.46579755,1829.6,1829.2,14.80263218]
[1746433001389,0.30770503,1829.5,1829.2,14.80263218]
[1746433001615,0.30770503,1829.5,1829.2,9.3357744]
[1746433001765,0.30770503,1829.5,1829.4,0.55]
[1746433007331,0.30770503,1829.5,1829.4,6.78337309]
[1746433008222,5.46491113,1829.9,1829.4,12.24964618]
[1746433008422,5.46491113,1829.9,1829.5,4.553]
[1746433008808,10.92995685,1829.9,1829.5,4.553]
[1746433009022,10.92995685,1829.9,1829.7,0.55]
[1746433009220,0.30752968,1829.8,1829.7,0.55]
[1746433011598,5.77262026,1829.8,1829.6,0.4553]
[1746433011799,0.30752968,1829.7,1829.6,1.0053]
[1746433018647,0.30752968,1829.7,1829.6,0.55]
[1746433019334,5.77290651,1829.7,1829.6,0.55]
[1746433020466,5.77290651,1829.7,1829.5,4.553]
[1746433020467,6.27827555,1829.6,1829.5,4.553]
[1746433020633,7.89310243,1829.6,1829.5,4.553]
[1746433021127,8.20063211,1829.6,1829.5,4.553]
[1746433021522,9.567233,1829.6,1829.5,4.553]
[1746433026632,12.567233,1829.6,1829.5,4.553]
[1746433026836,5.46675966,1829.3,1829.2,4.55]
[1746433027050,7.08129427,1829.4,1829.2,4.55]
[1746433027546,5.77332722,1829.6,1829.3,0.8075]
[1746433027752,7.08035935,1829.7,1829.3,0.8075]
[1746433027965,7.08035935,1829.7,1829.3,6.27403701]
[1746433028157,7.08035935,1829.7,1829.4,0.55]
[1746433028312,0.30768995,1829.6,1829.4,0.55]
[1746433028513,5.77341738,1829.6,1829.4,0.55]
[1746433028913,0.30768995,1829.5,1829.4,0.55]
[1746433030366,0.30768995,1829.5,1829.4,1.23240002]
[1746433032976,0.30768995,1829.5,1829.4,6.69867311]
[1746433034143,0.30768995,1829.5,1829.4,1.23240002]
[1746433034343,0.30768995,1829.5,1829.4,0.55]
[1746433036975,0.30768995,1829.5,1829.4,5.1]
[1746433051002,0.30768995,1829.5,1829.4,5.8736]
[1746433055412,0.30768995,1829.5,1829.4,11.33987309]
[1746433055773,0.30768995,1829.5,1829.4,17.48987309]